fUST/lending_fUST_20240819
["ID","MTS","AMOUNT","RATE_DAILY","PERIOD"]
[335285179,1724071839823,-154.69833824,0.00013017,2]
[335285180,1724071839833,-422.76904584,0.00013017,2]
[335285181,1724071839843,-600.88577429,0.00013017,2]
[335285182,1724071839853,-898.59338305,0.00013017,2]
[335285183,1724071839863,-2128.04084944,0.00013025,2]
[335285184,1724071839873,-19172.30476467,0.00013107,2]
[335285185,1724071839883,-587.0,0.00013232,2]
[335285186,1724071839893,-587.0,0.00013258,2]
[335285187,1724071839904,-19172.30476467,0.00013599,2]
[335285188,1724071839913,-155.23257901,0.00013599,2]
[335285189,1724071839925,-200.0,0.00013673,2]
[335285190,1724071839936,-200.0,0.00013673,2]
[335285191,1724071839946,-282.259266,0.00013684,2]
[335285192,1724071839957,-282.259266,0.00013684,2]
[335285193,1724071839967,-72503.9122399,0.00013689,2]
[335285194,1724071839977,-72503.9122399,0.00013689,2]
[335285195,1724071839986,-500.0,0.00013698,2]
[335285196,1724071839996,-500.0,0.00013698,2]
[335285197,1724071840006,-500.0,0.00013698,2]
[335285198,1724071840015,-500.0,0.00013698,2]
[335285199,1724071840025,-230.17744134,0.00013698,2]
[335285200,1724071840035,-500.0,0.00013698,2]
[335285201,1724071840045,-500.0,0.00013698,2]
[335285202,1724071840054,-500.0,0.00013698,2]
[335285203,1724071840064,-389.3065637,0.00013698,2]
[335285204,1724071840075,-500.0,0.00013698,2]
[335285205,1724071840086,-455.79033201,0.00013698,2]
[335285206,1724071840098,-500.0,0.00013698,2]
[335285207,1724071840108,-649.89709072,0.00013698,2]
[335285208,1724071840117,-151.0,0.00013699,2]
[335285209,1724071840127,-151.0,0.00013699,2]
[335285210,1724071840138,-766.713414,0.00013699,2]
[335285211,1724071840147,-2208.7397975,0.00013699,2]
[335285212,1724071840157,-35359.4473214,0.00013699,2]
[335285213,1724071840169,-204.816174,0.00013699,2]
[335285214,1724071840179,-204.816174,0.00013699,2]
[335285215,1724071840188,-151.0,0.00013699,2]
[335285216,1724071840197,-151.0,0.00013699,2]
[335285217,1724071840206,-720.356127,0.00013699,2]
[335285218,1724071840216,-720.356127,0.00013699,2]
[335285219,1724071840226,-151.0,0.00013699,2]
[335285220,1724071840236,-266.991656,0.00013699,2]
[335285221,1724071840246,-151.0,0.00013699,2]
[335285222,1724071840255,-266.991656,0.00013699,2]
[335285223,1724071840265,-529.551422,0.00013699,2]
[335285224,1724071840274,-529.551422,0.00013699,2]
[335285225,1724071840284,-151.0,0.00013699,2]
[335285226,1724071840294,-321.094365,0.00013699,2]
[335285227,1724071840303,-321.094365,0.00013699,2]
[335285228,1724071840312,-303.977694,0.00013699,2]
[335285229,1724071840321,-303.977694,0.00013699,2]
[335285230,1724071840330,-152.35498,0.00013699,2]
[335285231,1724071840339,-256.343529,0.00013699,2]
[335285232,1724071840352,-256.343529,0.00013699,2]
[335285233,1724071840361,-665.54032,0.00013699,2]
[335285234,1724071840370,-151.0,0.00013699,2]
[335285235,1724071840380,-151.0,0.00013699,2]
[335285236,1724071840390,-151.0,0.00013699,2]
[335285237,1724071840400,-151.0,0.00013699,2]
[335285238,1724071840419,-151.0,0.00013699,2]
[335285239,1724071840428,-665.54032,0.00013699,2]
[335285240,1724071840439,-151.0,0.00013699,2]
[335285241,1724071840450,-151.0,0.00013699,2]
[335285242,1724071840461,-151.0,0.00013699,2]
[335285243,1724071840471,-151.0,0.00013699,2]
[335285244,1724071840480,-151.0,0.00013699,2]
[335285245,1724071840490,-151.0,0.00013699,2]
[335285246,1724071840499,-151.0,0.00013699,2]
[335285247,1724071840508,-151.0,0.00013699,2]
[335285248,1724071840518,-151.0,0.00013699,2]
[335285249,1724071840527,-151.0,0.00013699,2]
[335285250,1724071840536,-151.0,0.00013699,2]
[335285251,1724071840548,-151.0,0.00013699,2]
[335285252,1724071840559,-151.0,0.00013699,2]
[335285253,1724071840569,-161.606117,0.00013699,2]
[335285254,1724071840579,-504.073518,0.00013699,2]
[335285255,1724071840589,-504.073518,0.00013699,2]
[335285256,1724071840600,-504.073518,0.00013699,2]
[335285257,1724071840612,-504.073518,0.00013699,2]
[335285258,1724071840624,-504.073518,0.00013699,2]
[335285259,1724071840634,-504.073518,0.00013699,2]
[335285260,1724071840644,-151.0,0.00013699,2]
[335285261,1724071840655,-500.0,0.00013699,2]
[335285262,1724071840665,-500.0,0.00013699,2]
[335285263,1724071840674,-500.0,0.00013699,2]
[335285264,1724071840684,-231.4546043,0.00013699,2]
[335285265,1724071840694,-500.0,0.00013699,2]
[335285266,1724071840704,-500.0,0.00013699,2]
[335285267,1724071840715,-500.0,0.00013699,2]
[335285268,1724071840726,-500.0,0.00013699,2]
[335285269,1724071840736,-500.0,0.00013699,2]
[335285270,1724071840747,-500.0,0.00013699,2]
[335285271,1724071840757,-500.0,0.00013699,2]
[335285272,1724071840768,-194.82337617,0.00013699,2]
[335285273,1724071840777,-500.0,0.00013699,2]
[335285274,1724071840786,-500.0,0.00013699,2]
[335285275,1724071840795,-500.0,0.00013699,2]
[335285276,1724071840805,-500.0,0.00013699,2]
[335285277,1724071840814,-500.0,0.00013699,2]
[335285278,1724071840823,-500.0,0.00013699,2]
[335285279,1724071840833,-500.0,0.00013699,2]
[335285280,1724071840842,-500.0,0.00013699,2]
[335285281,1724071840852,-500.0,0.00013699,2]
[335285282,1724071840861,-500.0,0.00013699,2]
[335285283,1724071840871,-500.0,0.00013699,2]
[335285284,1724071840880,-500.0,0.00013699,2]
[335285285,1724071840890,-500.0,0.00013699,2]
[335285286,1724071840901,-450.43222365,0.00013699,2]
[335285287,1724071840913,-500.0,0.00013699,2]
[335285288,1724071840924,-593.75,0.00013699,2]
[335285289,1724071840934,-500.0,0.00013699,2]
[335285290,1724071840945,-500.0,0.00013699,2]
[335285291,1724071840955,-500.0,0.00013699,2]
[335285292,1724071840966,-500.0,0.00013699,2]
[335285293,1724071840975,-500.0,0.00013699,2]
[335285294,1724071840984,-500.0,0.00013699,2]
[335285295,1724071840993,-500.0,0.00013699,2]
[335285296,1724071841002,-500.0,0.00013699,2]
[335285297,1724071841012,-500.0,0.00013699,2]
[335285298,1724071841021,-500.0,0.00013699,2]
[335285299,1724071841030,-500.0,0.00013699,2]
[335285300,1724071841040,-607.11371878,0.00013699,2]
[335285301,1724071841050,-500.0,0.00013699,2]
[335285302,1724071841061,-500.0,0.00013699,2]
[335285303,1724071841070,-500.0,0.00013699,2]
[335285304,1724071841079,-500.0,0.00013699,2]
[335285305,1724071841092,-500.0,0.00013699,2]
[335285306,1724071841102,-500.0,0.00013699,2]
[335285307,1724071841111,-500.0,0.00013699,2]
[335285308,1724071841120,-500.0,0.00013699,2]
[335285309,1724071841130,-500.0,0.00013699,2]
[335285310,1724071841139,-500.0,0.00013699,2]
[335285311,1724071841149,-500.0,0.00013699,2]
[335285312,1724071841162,-500.0,0.00013699,2]
[335285313,1724071841171,-500.0,0.00013699,2]
[335285314,1724071841180,-500.0,0.00013699,2]
[335285315,1724071841190,-500.0,0.00013699,2]
[335285316,1724071841199,-345.625,0.00013699,2]
[335285317,1724071841208,-500.0,0.00013699,2]
[335285318,1724071841219,-500.0,0.00013699,2]
[335285319,1724071841228,-500.0,0.00013699,2]
[335285320,1724071841238,-500.0,0.00013699,2]
[335285321,1724071841247,-500.0,0.00013699,2]
[335285322,1724071841257,-500.0,0.00013699,2]
[335285323,1724071841266,-500.0,0.00013699,2]
[335285324,1724071841275,-500.0,0.00013699,2]
[335285325,1724071841284,-500.0,0.00013699,2]
[335285326,1724071841294,-151.0,0.00013699,2]
[335285327,1724071841303,-500.0,0.00013699,2]
[335285328,1724071841312,-500.0,0.00013699,2]
[335285329,1724071841322,-500.0,0.00013699,2]
[335285330,1724071841331,-500.0,0.00013699,2]
[335285331,1724071841341,-500.0,0.00013699,2]
[335285332,1724071841350,-500.0,0.00013699,2]
[335285333,1724071841360,-500.0,0.00013699,2]
[335285334,1724071841371,-500.0,0.00013699,2]
[335285335,1724071841380,-500.0,0.00013699,2]
[335285336,1724071841390,-500.0,0.00013699,2]
[335285337,1724071841399,-176.19573101,0.00013699,2]
[335285338,1724071841410,-204.816174,0.00013699,2]
[335285339,1724071841420,-204.816174,0.00013699,2]
[335285340,1724071841429,-199.17879,0.00013699,2]
[335285341,1724071841438,-151.0,0.00013699,2]
[335285342,1724071841448,-720.356127,0.00013699,2]
[335285343,1724071841458,-720.356127,0.00013699,2]
[335285344,1724071841467,-266.991656,0.00013699,2]
[335285345,1724071841476,-151.0,0.00013699,2]
[335285346,1724071841485,-266.991656,0.00013699,2]
[335285347,1724071841495,-529.551422,0.00013699,2]
[335285348,1724071841504,-529.551422,0.00013699,2]
[335285349,1724071841514,-151.0,0.00013699,2]
[335285350,1724071841524,-321.094365,0.00013699,2]
[335285351,1724071841536,-321.094365,0.00013699,2]
[335285352,1724071841547,-303.977694,0.00013699,2]
[335285353,1724071841557,-282.259266,0.00013699,2]
[335285354,1724071841568,-303.977694,0.00013699,2]
[335285355,1724071841578,-282.259266,0.00013699,2]
[335285356,1724071841588,-256.343529,0.00013699,2]
[335285357,1724071841598,-256.343529,0.00013699,2]
[335285358,1724071841609,-665.54032,0.00013699,2]
[335285359,1724071841621,-151.0,0.00013699,2]
[335285360,1724071841631,-665.54032,0.00013699,2]
[335285361,1724071841643,-151.0,0.00013699,2]
[335285362,1724071841653,-504.073518,0.00013699,2]
[335285363,1724071841664,-504.073518,0.00013699,2]
[335285364,1724071841673,-265.37417561,0.00013971,2]
[335285365,1724071841682,-155.05103229,0.00014,2]
[335285366,1724071841691,-400.0,0.00014098,2]
[335285367,1724071841701,-151.0,0.00014192,2]
[335285368,1724071841711,-151.0,0.00014192,2]
[335285369,1724071841720,-151.0,0.00014192,2]
[335285370,1724071841730,-151.0,0.00014192,2]
[335285371,1724071841739,-151.0,0.00014192,2]
[335285372,1724071841748,-495.14476956,0.00014245,2]
[335285373,1724071841758,-251.079203,0.00014247,2]
[335285374,1724071841767,-251.0051472,0.00014247,2]
[335285375,1724071841777,-196.72510748,0.00014315,2]
[335285376,1724071841789,-823.0,0.00014541,2]
[335285377,1724071841798,-823.0,0.00014584,2]
[335285378,1724071841808,-4941.9170885,0.00014679,2]
[335285379,1724071841819,-151.0,0.00014918,2]
[335285380,1724071841830,-151.0,0.00014918,2]
[335285381,1724071841841,-400.0,0.00015042,2]
[335285382,1724071841850,-178.12087349,0.00015042,2]
[335285383,1724071841860,-151.0,0.00015068,2]
[335285384,1724071841870,-151.0,0.00015068,2]
[335285385,1724071841880,-151.0,0.00015068,2]
[335285386,1724071841890,-151.0,0.00015068,2]
[335285387,1724071841901,-151.0,0.00015068,2]
[335285388,1724071841911,-151.0,0.00015068,2]
[335285389,1724071841922,-151.0,0.00015068,2]
[335285390,1724071841932,-243.412398,0.00015068,2]
[335285391,1724071841944,-1110.9613583,0.00015372,2]
[335285392,1724071841956,-151.0,0.00015453,2]
[335285393,1724071841968,-720.356127,0.00015453,2]
[335285394,1724071841977,-720.356127,0.00015453,2]
[335285395,1724071841987,-266.991656,0.00015453,2]
[335285396,1724071841999,-151.0,0.00015453,2]
[335285397,1724071842008,-266.991656,0.00015453,2]
[335285398,1724071842017,-529.551422,0.00015453,2]
[335285399,1724071842027,-529.551422,0.00015453,2]
[335285400,1724071842037,-151.0,0.00015453,2]
[335285401,1724071842047,-321.094365,0.00015453,2]
[335285402,1724071842057,-321.094365,0.00015453,2]
[335285403,1724071842067,-303.977694,0.00015453,2]
[335285404,1724071842077,-282.259266,0.00015453,2]
[335285405,1724071842091,-303.977694,0.00015453,2]
[335285406,1724071842100,-282.259266,0.00015453,2]
[335285407,1724071842110,-150.112233,0.000158,2]
[335285408,1724071842121,-162.161318,0.000158,2]
[335285409,1724071842132,-378.644485,0.0001589,2]
[335285410,1724071842141,-919.0,0.0001598,2]
[335285411,1724071842151,-1152.0,0.00016042,2]
[335285412,1724071842164,-150.112233,0.000161,2]
[335285413,1724071842174,-150.112233,0.000161,2]
[335285414,1724071842183,-600.0,0.00016102,2]
[335285415,1724071842193,-733.3958158,0.00016159,2]
[335285416,1724071842202,-207.5740843,0.00016178,2]
[335285417,1724071842211,-614.989046,0.00016188,2]
[335285418,1724071842222,-204.816174,0.00016188,2]
[335285419,1724071842232,-204.816174,0.00016188,2]
[335285420,1724071842241,-256.343529,0.00016188,2]
[335285421,1724071842251,-256.343529,0.00016188,2]
[335285423,1724071842260,-665.54032,0.00016188,2]
[335285425,1724071842270,-665.54032,0.00016188,2]
[335285427,1724071842280,-25331.04386816,0.00016198,2]
[335285429,1724071842290,-151.0,0.00016198,2]
[335285430,1724071842300,-151.0,0.00016198,2]
[335285431,1724071842310,-151.0,0.00016198,2]
[335285432,1724071842320,-720.356127,0.00016198,2]
[335285433,1724071842329,-720.356127,0.00016198,2]
[335285434,1724071842339,-266.991656,0.00016198,2]
[335285435,1724071842349,-224.925555,0.00016198,2]
[335285436,1724071842359,-266.991656,0.00016198,2]
[335285437,1724071842368,-529.551422,0.00016198,2]
[335285438,1724071842377,-529.551422,0.00016198,2]
[335285439,1724071842386,-151.0,0.00016198,2]
[335285440,1724071842396,-321.094365,0.00016198,2]
[335285441,1724071842408,-321.094365,0.00016198,2]
[335285442,1724071842417,-303.977694,0.00016198,2]
[335285443,1724071842428,-282.259266,0.00016198,2]
[335285444,1724071842437,-303.977694,0.00016198,2]
[335285445,1724071842447,-282.259266,0.00016198,2]
[335285446,1724071842457,-256.343529,0.00016198,2]
[335285448,1724071842467,-256.343529,0.00016198,2]
[335285450,1724071842477,-665.54032,0.00016198,2]
[335285451,1724071842487,-151.0,0.00016198,2]
[335285452,1724071842497,-665.54032,0.00016198,2]
[335285453,1724071842506,-151.0,0.00016198,2]
[335285454,1724071842516,-151.0,0.00016198,2]
[335285455,1724071842526,-504.073518,0.00016198,2]
[335285456,1724071842536,-504.073518,0.00016198,2]
[335285457,1724071842546,-151.0,0.00016215,2]
[335285458,1724071842556,-151.0,0.00016215,2]
[335285459,1724071842566,-9679.60148479,0.00016225,2]
[335285460,1724071842576,-151.0,0.00016225,2]
[335285461,1724071842586,-811.89360827,0.000163,2]
[335285462,1724071842596,-614.989046,0.00016318,2]
[335285463,1724071842607,-204.816174,0.00016318,2]
[335285464,1724071842616,-204.816174,0.00016318,2]
[335285465,1724071842626,-154.849305,0.00016328,2]
[335285466,1724071842636,-720.356127,0.00016328,2]
[335285467,1724071842645,-720.356127,0.00016328,2]
[335285468,1724071842656,-266.991656,0.00016328,2]
[335285469,1724071842665,-266.991656,0.00016328,2]
[335285470,1724071842833,-529.551422,0.00016328,2]
[335285472,1724071842844,-529.551422,0.00016328,2]
[335285473,1724071842854,-151.0,0.00016328,2]
[335285474,1724071842863,-321.094365,0.00016328,2]
[335285476,1724071842873,-321.094365,0.00016328,2]
[335285477,1724071842883,-303.977694,0.00016328,2]
[335285479,1724071842894,-282.259266,0.00016328,2]
[335285481,1724071842905,-303.977694,0.00016328,2]
[335285482,1724071842915,-282.259266,0.00016328,2]
[335285483,1724071842925,-256.343529,0.00016328,2]
[335285484,1724071842934,-256.343529,0.00016328,2]
[335285485,1724071842944,-665.54032,0.00016328,2]
[335285486,1724071842954,-665.54032,0.00016328,2]
[335285488,1724071842965,-151.0,0.00016338,2]
[335285490,1724071842974,-190.038474,0.00016338,2]
[335285492,1724071842984,-614.989046,0.00016338,2]
[335285494,1724071842993,-204.816174,0.00016338,2]
[335285495,1724071843003,-204.816174,0.00016338,2]
[335285497,1724071843014,-256.343529,0.00016338,2]
[335285498,1724071843024,-256.343529,0.00016338,2]
[335285499,1724071843035,-665.54032,0.00016338,2]
[335285500,1724071843047,-665.54032,0.00016338,2]
[335285501,1724071843059,-504.073518,0.00016338,2]
[335285502,1724071843069,-504.073518,0.00016338,2]
[335285503,1724071843080,-824.04648635,0.00016338,2]
[335285504,1724071843094,-40000.0,0.00016338,2]
[335285505,1724071843103,-243.0161,0.00016356,2]
[335285506,1724071843113,-3500.0,0.000164,2]
[335285507,1724071843123,-3964.10932381,0.000164,2]
[335285508,1724071843134,-591.943647,0.000164,6]
[335285509,1724071843144,-151.0,0.000164,2]
[335285510,1724071843154,-151.0,0.000164,2]
[335285511,1724071843165,-151.0,0.000164,2]
[335285512,1724071843175,-151.0,0.00016427,2]
[335285513,1724071843185,-151.0,0.00016427,2]
[335285514,1724071843195,-720.356127,0.00016427,2]
[335285515,1724071843205,-720.356127,0.00016427,2]
[335285516,1724071843214,-266.991656,0.00016427,2]
[335285517,1724071843225,-266.991656,0.00016427,2]
[335285519,1724071843236,-198.659333,0.00016428,2]
[335285520,1724071843246,-529.551422,0.00016428,2]
[335285521,1724071843256,-529.551422,0.00016428,2]
[335285522,1724071843266,-151.0,0.00016428,2]
[335285523,1724071843276,-321.094365,0.00016428,2]
[335285524,1724071843286,-321.094365,0.00016428,2]
[335285525,1724071843296,-303.977694,0.00016428,2]
[335285526,1724071843305,-282.259266,0.00016428,2]
[335285527,1724071843315,-303.977694,0.00016428,2]
[335285528,1724071843325,-282.259266,0.00016428,2]
[335285529,1724071843335,-5328.69624806,0.0001643,2]
[335285530,1724071843344,-203.66534114,0.00016437,2]
[335285531,1724071843354,-5993.21173941,0.00016437,2]
[335285532,1724071843363,-150.0,0.00016437,2]
[335285533,1724071843373,-500.0,0.00016438,2]
[335285534,1724071843383,-500.0,0.00016438,2]
[335285535,1724071843394,-500.0,0.00016438,2]
[335285536,1724071843405,-500.0,0.00016438,2]
[335285537,1724071843417,-500.0,0.00016438,2]
[335285538,1724071843426,-500.0,0.00016438,2]
[335285539,1724071843436,-551.81792467,0.00016438,2]
[335285540,1724071843448,-538.93126061,0.00016438,2]
[335285541,1724071843458,-500.0,0.00016438,2]
[335285542,1724071843468,-208.95110547,0.00016438,2]
[335285543,1724071843478,-441.85528238,0.00016438,2]
[335285544,1724071843487,-500.0,0.00016438,2]
[335285545,1724071843497,-500.0,0.00016438,2]
[335285546,1724071843507,-516.32103639,0.00016438,2]
[335285547,1724071843517,-500.0,0.00016438,2]
[335285548,1724071843530,-500.0,0.00016438,2]
[335285549,1724071843540,-500.0,0.00016438,2]
[335285550,1724071843550,-500.0,0.00016438,2]
[335285551,1724071843559,-500.0,0.00016438,2]
[335285552,1724071843569,-500.0,0.00016438,2]
[335285553,1724071843579,-500.0,0.00016438,2]
[335285554,1724071843588,-500.0,0.00016438,2]
[335285555,1724071843598,-500.0,0.00016438,2]
[335285556,1724071843608,-500.0,0.00016438,2]
[335285557,1724071843617,-500.0,0.00016438,2]
[335285558,1724071843627,-500.0,0.00016438,2]
[335285559,1724071843637,-500.0,0.00016438,2]
[335285560,1724071843647,-359.22238801,0.00016438,2]
[335285561,1724071843658,-500.0,0.00016438,2]
[335285562,1724071843667,-500.88110826,0.00016438,2]
[335285563,1724071843676,-500.0,0.00016438,2]
[335285564,1724071843686,-500.0,0.00016438,2]
[335285565,1724071843696,-500.0,0.00016438,2]
[335285566,1724071843705,-500.0,0.00016438,2]
[335285567,1724071843715,-528.07046482,0.00016438,2]
[335285568,1724071843725,-510.76971986,0.00016438,2]
[335285569,1724071843734,-500.0,0.00016438,2]
[335285570,1724071843744,-502.85140263,0.00016438,2]
[335285571,1724071843754,-500.0,0.00016438,2]
[335285572,1724071843763,-501.21026235,0.00016438,2]
[335285573,1724071843773,-500.0,0.00016438,2]
[335285574,1724071843783,-500.0,0.00016438,2]
[335285575,1724071843792,-500.0,0.00016438,2]
[335285576,1724071843802,-500.0,0.00016438,2]
[335285577,1724071843811,-504.76171667,0.00016438,2]
[335285578,1724071843820,-500.0,0.00016438,2]
[335285579,1724071843830,-500.0,0.00016438,2]
[335285580,1724071843839,-500.0,0.00016438,2]
[335285581,1724071843849,-500.0,0.00016438,2]
[335285582,1724071843859,-159.02458049,0.00016438,2]
[335285583,1724071843868,-500.0,0.00016438,2]
[335285584,1724071843878,-501.7248077,0.00016438,2]
[335285585,1724071843887,-500.0,0.00016438,2]
[335285586,1724071843897,-500.0,0.00016438,2]
[335285587,1724071843907,-500.0,0.00016438,2]
[335285588,1724071843917,-527.97468298,0.00016438,2]
[335285589,1724071843926,-500.0,0.00016438,2]
[335285590,1724071843936,-500.0,0.00016438,2]
[335285591,1724071843946,-500.0,0.00016438,2]
[335285592,1724071843955,-500.0,0.00016438,2]
[335285593,1724071843965,-500.0,0.00016438,2]
[335285594,1724071843974,-500.0,0.00016438,2]
[335285595,1724071843983,-500.0,0.00016438,2]
[335285596,1724071843993,-500.0,0.00016438,2]
[335285597,1724071844003,-584.3404547,0.00016438,2]
[335285599,1724071844012,-500.0,0.00016438,2]
[335285601,1724071844022,-500.0,0.00016438,2]
[335285602,1724071844032,-500.0,0.00016438,2]
[335285603,1724071844042,-500.0,0.00016438,2]
[335285604,1724071844055,-510.47010333,0.00016438,2]
[335285605,1724071844065,-501.55252938,0.00016438,2]
[335285606,1724071844075,-500.0,0.00016438,2]
[335285607,1724071844085,-500.0,0.00016438,2]
[335285608,1724071844096,-500.0,0.00016438,2]
[335285609,1724071844106,-500.0,0.00016438,2]
[335285610,1724071844115,-500.0,0.00016438,2]
[335285611,1724071844124,-500.0,0.00016438,2]
[335285612,1724071844136,-500.0,0.00016438,2]
[335285613,1724071844147,-500.0,0.00016438,2]
[335285614,1724071844158,-500.0,0.00016438,2]
[335285615,1724071844170,-500.0,0.00016438,2]
[335285616,1724071844182,-500.0,0.00016438,2]
[335285617,1724071844191,-500.0,0.00016438,2]
[335285618,1724071844201,-511.22725887,0.00016438,2]
[335285619,1724071844210,-500.0,0.00016438,2]
[335285620,1724071844220,-500.0,0.00016438,2]
[335285621,1724071844231,-500.0,0.00016438,2]
[335285622,1724071844241,-547.89,0.00016438,2]
[335285623,1724071844251,-500.0,0.00016438,2]
[335285624,1724071844260,-500.0,0.00016438,2]
[335285625,1724071844269,-500.0,0.00016438,2]
[335285626,1724071844278,-503.16809955,0.00016438,2]
[335285627,1724071844294,-500.0,0.00016438,2]
[335285628,1724071844308,-500.0,0.00016438,2]
[335285629,1724071844319,-563.37795924,0.00016438,2]
[335285630,1724071844329,-500.0,0.00016438,2]
[335285631,1724071844339,-500.0,0.00016438,2]
[335285632,1724071844349,-500.0,0.00016438,2]
[335285633,1724071844359,-500.0,0.00016438,2]
[335285634,1724071844368,-500.0,0.00016438,2]
[335285635,1724071844379,-500.0,0.00016438,2]
[335285636,1724071844389,-500.0,0.00016438,2]
[335285637,1724071844399,-500.0,0.00016438,2]
[335285638,1724071844410,-517.86687166,0.00016438,2]
[335285639,1724071844420,-517.46134511,0.00016438,2]
[335285640,1724071844430,-500.0,0.00016438,2]
[335285641,1724071844439,-500.0,0.00016438,2]
[335285642,1724071844449,-500.0,0.00016438,2]
[335285643,1724071844459,-500.0,0.00016438,2]
[335285644,1724071844469,-500.0,0.00016438,2]
[335285645,1724071844480,-500.0,0.00016438,2]
[335285646,1724071844490,-500.0,0.00016438,2]
[335285647,1724071844500,-500.0,0.00016438,2]
[335285648,1724071844510,-503.05406503,0.00016438,2]
[335285649,1724071844520,-500.0,0.00016438,2]
[335285650,1724071844530,-500.0,0.00016438,2]
[335285651,1724071844540,-623.09379193,0.00016438,2]
[335285652,1724071844550,-500.0,0.00016438,2]
[335285653,1724071844560,-500.0,0.00016438,2]
[335285654,1724071844569,-500.0,0.00016438,2]
[335285655,1724071844579,-500.0,0.00016438,2]
[335285656,1724071844590,-500.0,0.00016438,2]
[335285657,1724071844599,-500.0,0.00016438,2]
[335285658,1724071844609,-500.0,0.00016438,2]
[335285659,1724071844619,-500.0,0.00016438,2]
[335285660,1724071844629,-500.0,0.00016438,2]
[335285661,1724071844639,-500.0,0.00016438,2]
[335285662,1724071844648,-500.0,0.00016438,2]
[335285663,1724071844664,-765.7,0.00016438,2]
[335285664,1724071844673,-500.0,0.00016438,2]
[335285665,1724071844682,-500.0,0.00016438,2]
[335285666,1724071844692,-500.0,0.00016438,2]
[335285667,1724071844701,-441.06407636,0.00016438,2]
[335285668,1724071844711,-500.0,0.00016438,2]
[335285669,1724071844720,-500.0,0.00016438,2]
[335285670,1724071844730,-500.0,0.00016438,2]
[335285671,1724071844739,-643.15886064,0.00016438,2]
[335285672,1724071844748,-500.0,0.00016438,2]
[335285673,1724071844758,-503.85815731,0.00016438,2]
[335285674,1724071844767,-841.38,0.00016438,2]
[335285675,1724071844777,-500.0,0.00016438,2]
[335285676,1724071844787,-521.11,0.00016438,2]
[335285677,1724071844797,-500.0,0.00016438,2]
[335285678,1724071844806,-500.0,0.00016438,2]
[335285679,1724071844816,-500.0,0.00016438,2]
[335285680,1724071844826,-500.0,0.00016438,2]
[335285681,1724071844836,-500.0,0.00016438,2]
[335285682,1724071844846,-500.0,0.00016438,2]
[335285683,1724071844855,-571.1,0.00016438,2]
[335285684,1724071844866,-500.0,0.00016438,2]
[335285685,1724071844876,-500.0,0.00016438,2]
[335285686,1724071844886,-500.0,0.00016438,2]
[335285687,1724071844896,-1475.13,0.00016438,2]
[335285688,1724071844911,-500.0,0.00016438,2]
[335285689,1724071844920,-500.0,0.00016438,2]
[335285690,1724071844932,-500.0,0.00016438,2]
[335285691,1724071844944,-500.0,0.00016438,2]
[335285692,1724071844954,-500.0,0.00016438,2]
[335285693,1724071844964,-500.0,0.00016438,2]
[335285694,1724071844975,-500.0,0.00016438,2]
[335285695,1724071844984,-500.0,0.00016438,2]
[335285696,1724071844995,-500.0,0.00016438,2]